fUSD/lending_fUSD_20240722
["ID","MTS","AMOUNT","RATE_DAILY","PERIOD"]
[332886220,1721631043534,-28411.29048224,0.0001189,2]
[332886223,1721631043545,-10892.84825559,0.0001189,2]
[332886226,1721631043557,-35160.68018008,0.0001189,2]
[332886228,1721631043569,-1181.33223359,0.0001189,2]
[332886233,1721631043604,-676.80092729,0.0001189,2]
[332886256,1721631043840,-174595.17212569,0.0001189,2]
[332886546,1721631046566,-1002.66863856,0.00011105,2]
[332886548,1721631046578,-5097.43482394,0.00011105,2]
[332886557,1721631046646,-491.41023895,0.00011105,2]
[332886560,1721631046658,-520.65104284,0.00011105,2]
[332886574,1721631046731,-4868.85463367,0.00011105,2]
[332886577,1721631046742,-293.423996,0.00011105,2]
[332886587,1721631046830,-12458.88266596,0.00011105,2]
[332886590,1721631046842,-4638.26779852,0.00011105,2]
[332886591,1721631046852,-58279.77756174,0.0001189,2]
[332886592,1721631046863,-63634.1887,0.0001189,2]
[332886593,1721631046875,-27444.66588,0.0001189,2]
[332886768,1721631299324,391.53,8.985e-05,2]
[332886769,1721631325028,300.0,0.00024,60]
[332886770,1721631480654,164.31,8.676e-05,2]
[332886771,1721631827702,371.95,8.743e-05,2]
[332886780,1721632231636,-2670.35134403,9.588e-05,2]
[332886781,1721632231648,-929.64865597,9.588e-05,2]
[332886782,1721632231658,-3600.0,9.588e-05,2]
[332886783,1721632231667,-3600.0,0.0001041,2]
[332886784,1721632231677,-3600.0,0.0001041,2]
[332886785,1721632231688,-155.8879964,0.00010516,2]
[332886786,1721632231697,-340.84273268,0.00010516,2]
[332886787,1721632231707,-203.30074424,0.00010516,2]
[332886788,1721632231718,-414.01891517,0.00010597,2]
[332886789,1721632231728,-1000.0,0.00010668,2]
[332886790,1721632231739,-1268.01,0.00010676,2]
[332886791,1721632231750,-176.24,0.00010676,2]
[332886792,1721632231759,-200.0,0.00010923,2]
[332886793,1721632231768,-250.0,0.00010959,2]
[332886794,1721632231778,-178.95,0.00010959,2]
[332886795,1721632231788,-894.75,0.00010959,2]
[332886796,1721632231798,-371.95,0.00011007,2]
[332886797,1721632231808,-155.12013379,0.00011105,2]
[332886798,1721632231817,-1073.31104613,0.00011105,2]
[332886799,1721632231826,-1137.62900031,0.00011105,2]
[332886800,1721632231837,-155.0,0.00011105,2]
[332886801,1721632231847,-518.54077531,0.000112,2]
[332886802,1721632231859,-334.12922469,0.000112,2]
[332886803,1721632231869,-150.0,0.00011231,2]
[332886804,1721632231878,-94.43039361,0.00011232,2]
[332886805,1721632231890,-831.66201726,0.00011232,2]
[332886806,1721632232514,-956.69375819,0.00011232,2]
[332886807,1721632232526,-1033.7,0.00011232,2]
[332886808,1721632232539,-683.51383094,0.00011232,2]
[332886809,1721632232548,-1605.75403214,0.00011232,2]
[332886810,1721632232731,-1994.24596786,0.00011232,2]
[332886811,1721632232745,-326.48356332,0.000113,2]
[332886812,1721632232757,-523.82643668,0.000113,2]
[332886813,1721632232768,-150.0,0.00011628,2]
[332886814,1721632232778,-150.0,0.0001163,2]
[332886815,1721632232789,-150.0,0.00011632,2]
[332886816,1721632232799,-150.0,0.00011632,2]
[332886817,1721632232810,-150.0,0.00011634,2]
[332886818,1721632232821,-150.0,0.0001164,2]
[332886819,1721632232831,-150.0,0.00011642,2]
[332886820,1721632232844,-150.0,0.00011646,2]
[332886821,1721632232853,-150.0,0.00011648,2]
[332886822,1721632232863,-150.0,0.0001165,2]
[332886823,1721632232873,-150.0,0.00011654,2]
[332886824,1721632232882,-46.17356212,0.00011654,2]
[332886825,1721632232895,-103.82643788,0.00011654,2]
[332886826,1721632232905,-150.0,0.00011656,2]
[332886827,1721632232915,-150.0,0.00011658,2]
[332886828,1721632232925,-150.0,0.00011659,2]
[332886829,1721632232936,-150.0,0.00011662,2]
[332886830,1721632232946,-150.0,0.0001167,2]
[332886831,1721632232957,-150.0,0.00011672,2]
[332886832,1721632232968,-150.0,0.00011678,2]
[332886833,1721632232978,-81.6142718,0.00011682,2]
[332886834,1721632233004,-68.3857282,0.00011682,2]
[332886835,1721632233014,-150.0,0.00011684,2]
[332886836,1721632233023,-150.0,0.0001169,2]
[332886837,1721632233034,-150.0,0.0001169,2]
[332886838,1721632233044,-150.0,0.00011701,2]
[332886839,1721632233054,-10.30583552,0.00011703,2]
[332886840,1721632233067,-139.69416448,0.00011703,2]
[332886841,1721632233076,-150.0,0.00011703,2]
[332886842,1721632233087,-150.0,0.00011706,2]
[332886843,1721632233098,-150.0,0.00011719,2]
[332886844,1721632233107,-150.0,0.00011721,2]
[332886845,1721632233117,-150.0,0.00011722,2]
[332886846,1721632233127,-150.0,0.00011724,2]
[332886847,1721632233137,-150.0,0.00011724,2]
[332886848,1721632233147,-150.0,0.00011724,2]
[332886849,1721632233157,-150.0,0.00011727,2]
[332886850,1721632233166,-150.0,0.00011732,2]
[332886851,1721632233176,-150.0,0.00011735,2]
[332886852,1721632233186,-150.0,0.00011738,2]
[332886853,1721632233195,-150.0,0.00011739,2]
[332886854,1721632233206,-150.0,0.0001174,2]
[332886855,1721632233215,-150.0,0.00011741,2]
[332886856,1721632233224,-150.0,0.00011742,2]
[332886857,1721632233235,-150.0,0.00011742,2]
[332886858,1721632233244,-150.0,0.00011748,2]
[332886859,1721632233254,-150.0,0.00011748,2]
[332886860,1721632233264,-150.0,0.00011749,2]
[332886861,1721632233274,-150.0,0.00011755,2]
[332886862,1721632233284,-150.0,0.00011763,2]
[332886863,1721632233294,-150.0,0.00011764,2]
[332886864,1721632233304,-150.0,0.00011764,2]
[332886865,1721632233313,-150.0,0.00011764,2]
[332886867,1721632233323,-150.0,0.00011768,2]
[332886869,1721632233333,-150.0,0.0001177,2]
[332886871,1721632233347,-150.0,0.00011774,2]
[332886873,1721632233360,-150.0,0.00011777,2]
[332886875,1721632233369,-150.0,0.00011778,2]
[332886877,1721632233379,-500.0,0.0001178,2]
[332886879,1721632233389,-500.0,0.0001178,2]
[332886882,1721632233399,-150.0,0.00011781,2]
[332886884,1721632233410,-150.0,0.00011783,2]
[332886886,1721632233419,-150.0,0.00011783,2]
[332886888,1721632233429,-150.0,0.00011786,2]
[332886890,1721632233439,-150.0,0.00011788,2]
[332886892,1721632233448,-1009.02328247,0.00011789,2]
[332886893,1721632233457,-281.1116,0.0001179,2]
[332886894,1721632233467,-150.0,0.00011791,2]
[332886895,1721632233477,-150.0,0.00011794,2]
[332886896,1721632233486,-273.90957045,0.00011794,2]
[332886897,1721632233495,-150.0,0.00011795,2]
[332886898,1721632233505,-530.21131214,0.000118,2]
[332886899,1721632233514,-530.21131215,0.000118,2]
[332886900,1721632233524,-10000.0,0.000118,2]
[332886901,1721632233533,-166808.6654,0.000118,2]
[332886902,1721632233543,-242.7045,0.000118,2]
[332886903,1721632233553,-12799.56052812,0.000118,2]
[332886904,1721632233563,-150.0,0.000118,2]
[332886905,1721632233573,-85556.0,0.000118,2]
[332886906,1721632233582,-7500.0,0.000118,2]
[332886907,1721632233597,-4359.12856756,0.000118,2]
[332886908,1721632233607,-500.0,0.00011805,2]
[332886909,1721632233617,-150.0,0.00011806,2]
[332886910,1721632233628,-150.0,0.00011807,2]
[332886911,1721632233638,-150.0,0.00011807,2]
[332886912,1721632233648,-150.0,0.00011808,2]
[332886913,1721632233659,-150.0,0.00011808,2]
[332886914,1721632233669,-150.0,0.0001181,2]
[332886915,1721632233679,-150.0,0.00011813,2]
[332886916,1721632233689,-150.0,0.00011815,2]
[332886917,1721632233699,-150.0,0.00011817,2]
[332886918,1721632233709,-150.0,0.00011823,2]
[332886919,1721632233720,-150.0,0.0001183,2]
[332886920,1721632233730,-150.0,0.00011831,2]
[332886921,1721632233742,-150.0,0.00011834,2]
[332886922,1721632233752,-150.0,0.00011835,2]
[332886923,1721632233762,-150.0,0.00011836,2]
[332886924,1721632233772,-150.0,0.00011837,2]
[332886925,1721632233780,-150.0,0.00011838,2]
[332886926,1721632233790,-150.0,0.00011838,2]
[332886927,1721632233799,-150.0,0.00011842,2]
[332886928,1721632233809,-150.0,0.00011846,2]
[332886929,1721632233819,-150.0,0.00011851,2]
[332886930,1721632233829,-150.0,0.00011852,2]
[332886931,1721632233841,-150.0,0.00011853,2]
[332886932,1721632233851,-150.0,0.00011856,2]
[332886933,1721632233861,-150.0,0.00011864,2]
[332886934,1721632233871,-150.0,0.00011866,2]
[332886935,1721632233881,-150.0,0.00011883,2]
[332886936,1721632233891,-150.0,0.00011884,2]
[332886937,1721632233901,-150.0,0.00011884,2]
[332886938,1721632233911,-150.0,0.00011886,2]
[332886939,1721632233921,-150.0,0.00011886,2]
[332886940,1721632233931,-150.0,0.00011887,2]
[332886941,1721632233941,-150.0,0.00011887,2]
[332886942,1721632233950,-150.0,0.00011888,2]
[332886943,1721632233959,-575.0,0.0001189,2]
[332886944,1721632233969,-5091.62145607,0.0001189,2]
[332886945,1721632233979,-450.0,0.0001189,2]
[332886946,1721632233988,-1536.067,0.0001189,2]
[332886947,1721632233997,-3000.0,0.0001189,2]
[332886948,1721632234007,-159.28475358,0.0001189,2]
[332886949,1721632234016,-159.28475358,0.0001189,2]
[332886950,1721632234025,-4378.6850865,0.00011894,2]
[332886951,1721632234035,-29172.417067,0.00011894,2]
[332886952,1721632234044,-1270.926453,0.00011894,2]
[332886953,1721632234054,-150.0,0.00011894,2]
[332886954,1721632234063,-22817.0267456,0.00011894,2]
[332886955,1721632234072,-206.366,0.00011894,2]
[332886956,1721632234082,-150.0,0.00011895,2]
[332886957,1721632234094,-1404.11080109,0.00011896,2]
[332886958,1721632234103,-194.68430357,0.00011899,2]
[332886959,1721632234114,-154.89292255,0.00011899,2]
[332886960,1721632234123,-42710.72623457,0.000119,2]
[332886964,1721632237627,-250.0,0.00010959,2]
[332886965,1721632237636,-950.0,0.000119,2]
[332886968,1721632237718,-1786.08669,0.000119,2]
[332886969,1721632237729,-3753.79813677,0.000119,2]
[332886970,1721632237743,-1034.18642388,0.000119,2]
[332886971,1721632237755,-66604.30712596,0.000119,2]
[332886972,1721632237766,-1767.65307,0.000119,2]
[332886973,1721632237778,-1227.09561243,0.000119,2]
[332886974,1721632237789,-2905.42763126,0.000119,2]
[332886975,1721632237956,-42555.76034726,0.000119,2]
[332886982,1721632242361,-515.0,0.00011889,2]
[332886983,1721632242371,-2001.69457731,0.00011897,2]
[332886984,1721632242380,-2910.49747112,0.000119,2]
[332886985,1721632242394,-1748.56626615,0.000119,2]
[332886986,1721632242405,-1120.0285415,0.000119,2]
[332886987,1721632242417,-312.49999335,0.000119,2]
[332886988,1721632242446,-337.25,0.000119,2]
[332886989,1721632242533,-3210.65,0.000119,2]
[332886991,1721632242545,-27289.38432424,0.000119,2]
[332886992,1721632242556,-3527.75465539,0.000119,2]
[332886993,1721632242568,-3369.535,0.000119,2]
[332887000,1721632242705,-692.45258626,0.000119,2]
[332887004,1721632242717,-1789.29207492,0.000119,2]
[332887013,1721632242804,-305.56226726,0.000119,2]
[332887015,1721632242816,-701.666667,0.000119,2]
[332887016,1721632242829,-775.0,0.000119,2]
[332887017,1721632242840,-2698.12,0.000119,2]
[332887018,1721632242860,-266.7750271,0.000119,2]
[332887019,1721632242871,-71838.17635719,0.000119,2]
[332887020,1721632242883,-406.07,0.000119,2]
[332887021,1721632242917,-1160.02723563,0.000119,2]
[332887022,1721632242929,-503.47008448,0.000119,2]
[332887023,1721632242940,-784.98258612,0.000119,2]
[332887024,1721632243004,-648039.06760269,0.000119,2]
[332887025,1721632243015,-946.16994413,0.000119,2]
[332887026,1721632243028,-1175.26064,0.000119,2]
[332887027,1721632243040,-1006.62630079,0.000119,2]
[332887028,1721632243051,-352.72799642,0.000119,2]
[332887029,1721632243063,-5296.76582824,0.000119,2]
[332887030,1721632243081,-421.401,0.000119,2]
[332887036,1721632247996,-400.0,0.000119,2]
[332887037,1721632248152,-905.72771757,0.000119,2]
[332887038,1721632248278,-2965.15526824,0.000119,2]
[332887039,1721632248361,-5989.69837893,0.000119,2]
[332887040,1721632248458,-1933.92052558,0.000119,2]
[332887041,1721632248470,-2441.08068232,0.000119,2]
[332887042,1721632248483,-2752.37335801,0.000119,2]
[332887043,1721632248494,-2139.91841431,0.000119,2]
[332887044,1721632248506,-618.3903605,0.000119,2]
[332887045,1721632248518,-1976.79,0.000119,2]
[332887046,1721632248529,-854.0,0.000119,2]
[332887047,1721632248541,-482.96594405,0.000119,2]
[332887048,1721632248552,-582.42193657,0.000119,2]
[332887049,1721632248563,-873.74712415,0.000119,2]
[332887050,1721632248575,-393.76878671,0.000119,2]
[332887051,1721632248586,-4028.06691352,0.000119,2]
[332887052,1721632248598,-10391.97917367,0.000119,2]
[332887053,1721632248610,-3590.321202,0.000119,2]
[332887054,1721632248621,-3299.11777029,0.000119,2]
[332887055,1721632248633,-1280.55912122,0.000119,2]
[332887056,1721632328020,3024.06,0.00025,110]
[332887057,1721632435250,-900000.0,0.00013,30]
[332887058,1721632442382,-232847.69354876,0.00013,30]
[332887059,1721632442408,-784983.26267195,0.00013,30]
[332887060,1721632442435,-833575.16678492,0.00013,30]
[332887061,1721632442461,-362232.94163482,0.00013,30]
[332887062,1721632442489,-1000805.03360407,0.00013,30]
[332887063,1721632442617,-152.0,0.0001494,10]
[332887064,1721632442643,-9352.0,0.00015,10]
[332887065,1721632442667,-3340.14472074,0.00015,14]
[332887066,1721632442694,-168.66582171,0.00015757,20]
[332887067,1721632442727,-1892.18,0.00018849,30]
[332887068,1721632443155,-1000.0,0.00019876,10]
[332887069,1721632443181,-4289.80963422,0.0002,15]
[332887070,1721632443209,-151.0,0.00020887,30]
[332887071,1721632443233,-12009.6571848,0.00020888,10]
[332887072,1721632443262,-412.87992356,0.00022,30]
[332887073,1721632443293,-204.0,0.00022,10]
[332887074,1721632443318,-168.35779948,0.000225,30]
[332887075,1721632443343,-220.224467,0.000225,10]
[332887076,1721632443374,-1892.18,0.00023831,30]
[332887077,1721632443399,-2000.0,0.00024,14]
[332887078,1721632443425,-500.0,0.00024567,14]
[332887079,1721632443450,-150.0,0.00024875,15]
[332887080,1721632443474,-671.14595423,0.00025,90]
[332887081,1721632443498,-2039.480928,0.00025,60]
[332887082,1721632443523,-2000.0,0.00025,30]
[332887083,1721632443547,-1838.6487632,0.00025,26]
[332887084,1721632443571,-5000.0,0.00025,30]
[332887085,1721632443595,-1742.0,0.00025,90]
[332887086,1721632443620,-551.67839373,0.00025,45]
[332887087,1721632443645,-1206.01633681,0.0002509,120]
[332887088,1721632443669,-1074.78,0.0002515,120]
[332887089,1721632443694,-1500.0,0.000252,14]
[332887090,1721632443720,-270.45726896,0.00026,120]
[332887091,1721632443744,-502.04397084,0.00026,120]
[332887092,1721632443769,-1204.449895,0.00026,27]
[332887093,1721632443794,-510.0,0.00026027,120]
[332887094,1721632443822,-1208.0,0.00026139,30]
[332887095,1721632443848,-1721.68916437,0.00026222,28]
[332887096,1721632443873,-510.0,0.00026301,120]
[332887097,1721632443899,-510.0,0.00026575,120]
[332887098,1721632443924,-175.0,0.0002684,14]
[332887099,1721632443948,-510.0,0.00026849,120]
[332887100,1721632443975,-663.22709988,0.000269,30]
[332887101,1721632443999,-800.0,0.00026986,120]
[332887102,1721632444023,-800.0,0.00026986,120]
[332887103,1721632444047,-800.0,0.00026986,120]
[332887104,1721632444071,-800.0,0.00026986,120]
[332887105,1721632444095,-800.0,0.00026986,120]
[332887106,1721632444120,-800.0,0.00026986,120]
[332887107,1721632444144,-800.0,0.00026986,120]
[332887108,1721632444168,-800.0,0.00026986,120]
[332887109,1721632444192,-800.0,0.00026986,120]
[332887110,1721632444216,-800.0,0.00026986,120]
[332887111,1721632444239,-800.0,0.00026986,120]
[332887112,1721632444264,-800.0,0.00026986,120]
[332887113,1721632444289,-800.0,0.00026986,120]
[332887114,1721632444312,-800.0,0.00026986,120]
[332887115,1721632444335,-800.0,0.00026986,120]
[332887116,1721632444359,-800.0,0.00026986,120]
[332887117,1721632444382,-800.0,0.00026986,120]
[332887118,1721632444405,-800.0,0.00026986,120]
[332887119,1721632444427,-800.0,0.00026986,120]
[332887120,1721632444451,-800.0,0.00026986,120]
[332887121,1721632444474,-800.0,0.00026986,120]
[332887122,1721632444497,-800.0,0.00026986,120]
[332887123,1721632444520,-800.0,0.00026986,120]
[332887124,1721632444546,-800.0,0.00026986,120]
[332887125,1721632444570,-800.0,0.00026986,120]
[332887126,1721632444594,-800.0,0.00026986,120]
[332887127,1721632444618,-329.43695082,0.00027,120]
[332887128,1721632444642,-150.0,0.00027,120]
[332887129,1721632444666,-1524.49787154,0.00027,120]
[332887130,1721632444690,-617.89,0.00027,120]
[332887131,1721632444714,-661.35369829,0.00027,120]
[332887132,1721632444737,-2000.0,0.00027,120]
[332887133,1721632444762,-1800.0,0.00027,28]
[332887134,1721632444785,-633.0,0.00027,120]
[332887135,1721632444814,-2000.0,0.00027,30]
[332887136,1721632444839,-510.0,0.00027123,120]
[332887137,1721632444864,-194.15091961,0.0002736,120]
[332887138,1721632444892,-486.56867878,0.0002738,120]
[332887139,1721632444917,-510.0,0.00027397,120]
[332887140,1721632444942,-200.0,0.00027397,15]
[332887141,1721632444966,-200.0,0.00027397,60]
[332887142,1721632444989,-494.0,0.00027397,13]
[332887143,1721632445018,-510.0,0.00027671,120]
[332887144,1721632445043,-1000.0,0.000279,27]
[332887145,1721632445069,-510.0,0.00027945,120]
[332887146,1721632445094,-1800.0,0.00028,29]
[332887147,1721632445119,-2000.0,0.00028,120]
[332887148,1721632445144,-1663.33230064,0.00028,30]
[332887149,1721632445169,-285.82983458,0.00028219,120]
[332887150,1721632445194,-677.01,0.000283,14]
[332887151,1721632445219,-1000.0,0.000285,10]
[332887152,1721632445245,-1892.18,0.00028812,30]
[332887153,1721632445271,-1800.0,0.00029,30]
[332887154,1721632445294,-2000.0,0.00029,60]
[332887155,1721632445317,-300.0,0.00029,30]
[332887156,1721632445344,-677.01,0.000294,14]
[332887157,1721632445367,-1824.68858,0.0002978,10]
[332887158,1721632445390,-1000.0,0.000298,10]
[332887159,1721632445414,-1000.0,0.0002982,10]
[332887160,1721632445437,-1000.0,0.0002984,10]
[332887161,1721632445461,-1000.0,0.0002986,10]
[332887162,1721632445485,-1000.0,0.0002988,10]
[332887163,1721632445509,-1000.0,0.000299,10]
[332887164,1721632445534,-1000.0,0.0002992,10]
[332887165,1721632445560,-1000.0,0.0002994,10]
[332887166,1721632445585,-1000.0,0.0002996,10]
[332887167,1721632445609,-1000.0,0.0002998,10]
[332887168,1721632445633,-1772.95968346,0.0003,10]
[332887169,1721632445941,-1581.84617624,0.0003,14]
[332887170,1721632445966,-3378.54715585,0.0003,120]
[332887171,1721632445990,-250.0,0.0003,30]
[332887172,1721632446014,-256.6334904,0.0003,30]
[332887173,1721632446039,-1800.0,0.0003,60]
[332887174,1721632446063,-1800.0,0.0003,31]
[332887175,1721632446087,-2000.0,0.0003,120]
[332887176,1721632446111,-1000.0,0.0003,30]
[332887177,1721632446135,-863.33230066,0.0003,50]
[332887178,1721632446165,-519.0,0.0003,120]
[332887179,1721632446189,-175.0,0.0003,14]
[332887180,1721632446214,-180.0,0.0003,21]
[332887181,1721632446239,-1000.0,0.0003,11]
[332887182,1721632446266,-688.0,0.00030082,120]
[332887183,1721632446292,-200.78592512,0.00030137,60]
[332887184,1721632446317,-306.581654,0.00030137,30]
[332887185,1721632446341,-151.0,0.00030137,120]
[332887186,1721632446366,-151.0,0.00030137,120]
[332887187,1721632446390,-151.0,0.00030137,120]
[332887188,1721632446414,-151.0,0.00030137,120]
[332887189,1721632446438,-151.0,0.00030137,120]
[332887190,1721632446462,-151.0,0.00030137,120]
[332887191,1721632446486,-151.0,0.00030137,120]
[332887192,1721632446510,-151.0,0.00030137,120]
[332887193,1721632446536,-278.538063,0.00030137,120]
[332887194,1721632446561,-306.581654,0.00030274,30]
[332887195,1721632446584,-316.67120262,0.00030303,10]
[332887196,1721632446609,-306.581654,0.00030384,30]
[332887197,1721632446633,-388.0,0.00030466,120]
[332887198,1721632446658,-258.0,0.00030493,120]
[332887199,1721632446682,-300.0,0.000305,30]
[332887200,1721632446706,-306.581654,0.00030521,30]
[332887201,1721632446731,-253.82,0.00030575,120]
[332887202,1721632446756,-668.0,0.0003063,120]
[332887203,1721632446786,-238.0,0.0003063,120]
[332887204,1721632446815,-668.0,0.00030658,120]
[332887205,1721632446839,-306.581654,0.00030658,30]
[332887206,1721632446864,-306.581654,0.00030767,30]
[332887207,1721632446889,-70094.01550701,0.0003087,14]
[332887208,1721632446914,-306.581654,0.00030904,30]
[332887209,1721632446938,-20000.0,0.00031,10]
[332887210,1721632446963,-1800.0,0.00031,32]
[332887211,1721632446986,-300.0,0.00031,60]
[332887212,1721632447010,-1000.0,0.00031,120]
[332887213,1721632447036,-306.581654,0.00031041,30]
[332887214,1721632447061,-306.581654,0.00031151,30]
[332887215,1721632447085,-306.581654,0.00031288,30]
[332887216,1721632447109,-306.581654,0.00031397,30]
[332887217,1721632447134,-1000.0,0.00031484,31]
[332887218,1721632447160,-680.13,0.00031506,10]
[332887219,1721632447185,-306.581654,0.00031534,30]
[332887220,1721632447211,-2416.0,0.00031661,120]
[332887221,1721632447235,-306.581654,0.00031671,30]
[332887222,1721632447261,-666.0,0.00031726,120]
[332887223,1721632447287,-306.581654,0.00031781,30]
[332887224,1721632447313,-306.581654,0.00031918,30]
[332887225,1721632447339,-214.86161958,0.00032,10]
[332887226,1721632447369,-15226.76519265,0.00032,10]
[332887227,1721632447399,-155.76868603,0.00032,30]
[332887228,1721632447425,-2000.0,0.00032,120]
[332887229,1721632447451,-717.46367859,0.00032,60]
[332887230,1721632447476,-2040.35057324,0.00032157,30]
[332887231,1721632447502,-680.13,0.00032328,11]
[332887232,1721632447528,-677.01,0.000326,14]
[332887233,1721632447553,-22455.13984873,0.00032865,30]
[332887234,1721632447580,-1004.7906659,0.00032876,30]
[332887235,1721632447605,-500.0,0.00032876,30]
[332887236,1721632447630,-500.0,0.00032876,30]
[332887237,1721632447656,-595.27822293,0.00032876,30]
[332887238,1721632447687,-500.0,0.00032877,13]
[332887239,1721632447714,-516.0,0.00032877,13]
[332887240,1721632447742,-362.0,0.00032877,13]
[332887241,1721632447770,-2501.34418487,0.000329,30]
[332887242,1721632447799,-10791.03973845,0.000329,30]
[332887243,1721632447825,-250.0,0.00033,120]
[332887244,1721632447851,-300.0,0.00033,60]
[332887245,1721632447877,-4970.78,0.0003315,14]
[332887246,1721632447904,-680.13,0.0003315,12]
[332887247,1721632447930,-1001.43,0.00033151,120]
[332887248,1721632447957,-336.14,0.00033151,120]
[332887249,1721632447985,-214.84,0.000335,31]
[332887250,1721632448013,-214.84,0.000335,31]
[332887251,1721632448041,-214.84,0.000335,31]
[332887252,1721632448069,-214.84,0.000335,31]
[332887253,1721632448101,-214.84,0.000335,31]
[332887254,1721632448131,-214.84,0.000335,31]
[332887255,1721632448161,-214.84,0.000335,31]
[332887256,1721632448191,-214.84,0.000335,31]
[332887257,1721632448220,-214.84,0.000335,31]
[332887258,1721632448249,-214.84,0.000335,31]
[332887259,1721632448279,-214.84,0.000335,31]
[332887260,1721632448307,-214.84,0.000335,31]
[332887261,1721632448335,-214.84,0.000335,31]
[332887262,1721632448364,-214.84,0.000335,31]
[332887263,1721632448392,-214.84,0.000335,31]
[332887264,1721632448420,-214.84,0.000335,31]
[332887265,1721632448447,-214.84,0.000335,31]
[332887266,1721632448474,-214.84,0.000335,31]
[332887267,1721632448502,-214.84,0.000335,31]
[332887268,1721632448533,-214.84,0.000335,31]
[332887269,1721632448558,-1892.18,0.00033793,30]
[332887270,1721632448583,-680.13,0.00033972,13]
[332887271,1721632448608,-1032.2084634,0.00034,120]
[332887272,1721632448976,-334.91999901,0.00034,30]
[332887273,1721632449002,-250.0,0.00034,120]
[332887274,1721632449033,-2000.0,0.00034,120]
[332887275,1721632449058,-800.0,0.00034,80]
[332887276,1721632449082,-802.7385839,0.00034,90]
[332887277,1721632449106,-3361.99505153,0.000341,90]
[332887278,1721632449132,-1000.0,0.000342,120]
[332887279,1721632449156,-1639.0,0.00034246,120]
[332887280,1721632449180,-1639.0,0.00034246,120]
[332887281,1721632449205,-1639.0,0.00034246,120]
[332887282,1721632449232,-1639.0,0.00034246,120]
[332887283,1721632449257,-1639.0,0.00034246,120]
[332887284,1721632449283,-1639.0,0.00034246,120]
[332887285,1721632449311,-1639.0,0.00034246,120]
[332887286,1721632449335,-1639.0,0.00034246,120]
[332887287,1721632449359,-1639.0,0.00034246,120]
[332887288,1721632449384,-1639.0,0.00034246,120]
[332887289,1721632449407,-1639.0,0.00034246,120]
[332887290,1721632449432,-1639.0,0.00034246,120]
[332887291,1721632449456,-1639.0,0.00034246,120]
[332887292,1721632449480,-1639.0,0.00034246,120]
[332887293,1721632449505,-1639.0,0.00034246,120]
[332887294,1721632449528,-1639.0,0.00034246,120]
[332887295,1721632449552,-1639.0,0.00034246,120]
[332887296,1721632449576,-1639.0,0.00034246,120]
[332887297,1721632449600,-1639.0,0.00034246,120]
[332887298,1721632449625,-1639.0,0.00034246,120]
[332887299,1721632449650,-1639.0,0.00034246,120]
[332887300,1721632449674,-1639.0,0.00034246,120]
[332887301,1721632449698,-1639.0,0.00034246,120]
[332887302,1721632449723,-1639.15342492,0.00034246,120]
[332887303,1721632449746,-1590.60115484,0.000343,30]
[332887304,1721632449772,-449.93825202,0.00034357,10]
[332887305,1721632449800,-1000.0,0.000345,120]
[332887306,1721632449824,-2000.0,0.000345,120]
[332887307,1721632449848,-150.0,0.00034548,10]